bitfinex/quotes_ETHUSD_20250214
["timestamp","ask_amount","ask_price","bid_price","bid_amount"]
[1739524901087,3.68799,2711.5,2711.4,0.7257856]
[1739524903952,3.68799,2711.5,2711.1,0.34436822]
[1739524903953,3.6884,2711.2,2711.1,0.34436822]
[1739524904310,3.6884,2711.2,2711.1,0.51605192]
[1739524904514,3.68813,2711.4,2711.1,0.51605192]
[1739524904992,3.68813,2711.4,2711.1,0.1716837]
[1739524905284,3.68813,2711.4,2710.9,4.03309822]
[1739524905486,3.68826,2711.3,2711.2,0.17185354]
[1739524905657,3.68826,2711.3,2711.0,1.20967699]
[1739524905983,4.50178,2711.5,2711.1,0.17194883]
[1739524906183,3.68816,2711.4,2711.1,0.17194883]
[1739524906546,4.50178,2711.5,2711.1,0.17194883]
[1739524906547,8.1899,2711.5,2711.1,0.17194883]
[1739524906784,3.68821,2711.4,2711.1,0.17194883]
[1739524907485,4.50178,2711.5,2711.1,0.17194883]
[1739524907987,3.68819,2711.4,2711.1,0.17194883]
[1739524908575,4.50146,2711.7,2711.2,0.7854]
[1739524908779,3.68786,2711.6,2711.2,0.7854]
[1739524909098,3.68786,2711.6,2711.3,0.17175825]
[1739524909387,3.68801,2711.5,2711.3,0.17175825]
[1739524909588,3.68801,2711.5,2711.2,0.7854]
[1739524909792,4.50146,2711.7,2711.4,0.17166298]
[1739524909989,3.68789,2711.6,2711.3,0.17175825]
[1739524910158,4.50146,2711.7,2711.5,0.17156771]
[1739524910352,4.50146,2711.7,2711.2,0.7854]
[1739524910353,4.50146,2711.7,2711.4,0.17166298]
[1739524910557,4.50146,2711.7,2711.6,0.17147244]
[1739524910808,3.68785,2711.6,2711.5,0.17156771]
[1739524911093,3.68785,2711.6,2711.2,0.7854]
[1739524911094,3.68785,2711.6,2711.2,1.12976822]
[1739524911412,4.50146,2711.7,2711.5,0.17156771]
[1739524911559,4.50146,2711.7,2711.2,5.77502748]
[1739524912091,4.50146,2711.7,2711.3,0.17175825]
[1739524912387,4.50146,2711.7,2711.3,0.51612647]
[1739524912593,4.50146,2711.7,2711.3,0.34436822]
[1739524912797,4.50146,2711.7,2711.4,0.17166298]
[1739524913150,3.68746,2711.9,2711.5,0.8174]
[1739524913356,3.68717,2712.1,2711.5,1.56709537]
[1739524913555,3.68756,2711.9,2711.6,0.17147244]
[1739524913756,3.6873,2712.1,2711.6,0.17147244]
[1739524914088,3.68739,2712.0,2711.6,0.17147244]
[1739524915179,3.6873,2712.1,2711.6,0.17147244]
[1739524915378,3.68729,2712.1,2711.6,0.17147244]
[1739524915600,3.68717,2712.1,2711.6,0.17147244]
[1739524915910,3.68756,2711.9,2711.6,0.17147244]
[1739524916088,3.6876,2711.8,2711.6,0.17147244]
[1739524916413,3.6876,2711.8,2711.0,6.68857]
[1739524916616,4.45098,2710.7,2709.1,9.215]
[1739524916775,3.68943,2710.5,2709.9,3.69015]
[1739524916970,4.45098,2710.7,2709.9,3.69015]
[1739524917214,0.7619,2710.7,2710.3,0.72436375]
[1739524917415,3.19318234,2711.4,2710.5,3.68932]
[1739524917713,3.68834,2711.3,2710.5,3.68925]
[1739524917900,0.18341663,2711.6,2710.8,3.68885]
[1739524918099,3.68803,2711.5,2710.9,4.426519]
[1739524918345,7.37615,2711.5,2710.9,4.426519]
[1739524918490,3.68817,2711.4,2710.9,0.737789]
[1739524919416,3.68817,2711.4,2711.0,0.0159]
[1739524919781,3.68826,2711.3,2711.2,0.74474132]
[1739524920515,3.68826,2711.3,2711.0,0.0159]
[1739524920717,3.68842,2711.2,2711.0,0.0159]
[1739524920916,3.68826,2711.3,2711.0,0.0159]
[1739524921091,3.68826,2711.3,2711.1,0.75278899]
[1739524921288,3.68806,2711.5,2711.1,0.75278899]
[1739524923026,3.68828,2711.3,2711.1,0.75278899]
[1739524923229,0.18341663,2711.6,2711.1,0.75278899]
[1739524923405,3.68782,2711.7,2711.1,0.75278899]
[1739524923607,3.688,2711.5,2711.1,0.75278899]
[1739524923914,7.37608,2711.5,2711.1,1.19852589]
[1739524924081,7.37608,2711.5,2711.2,0.14739707]
[1739524924484,3.688,2711.5,2711.2,0.14739707]
[1739524924715,3.6878,2711.7,2711.2,0.14739707]
[1739524924918,7.37563,2711.7,2711.2,0.14739707]
[1739524925121,3.6878,2711.7,2711.4,0.0159]
[1739524925484,3.6878,2711.7,2711.5,0.14711123]
[1739524925697,3.68785,2711.6,2711.5,0.14711123]
[1739524926318,3.6878,2711.7,2711.5,0.14711123]
[1739524926781,3.68785,2711.6,2711.5,0.14711123]
[1739524927278,3.6878,2711.7,2711.5,0.14711123]
[1739524927683,3.68785,2711.6,2711.5,0.14711123]
[1739524927922,3.6878,2711.7,2711.5,0.14711123]
[1739524928731,7.37562,2711.7,2711.5,0.14711123]
[1739524929024,3.6878,2711.7,2711.5,0.14711123]
[1739524929232,3.68785,2711.6,2711.5,0.14711123]
[1739524929406,3.6878,2711.7,2711.5,0.14711123]
[1739524929594,3.68785,2711.6,2711.5,0.49228773]
[1739524931110,3.68754,2711.9,2711.5,0.49228773]
[1739524931836,3.6876,2711.8,2711.5,0.49228773]
[1739524932128,3.68785,2711.6,2711.5,0.49228773]
[1739524932330,3.68785,2711.6,2711.5,0.14711123]
[1739524932544,3.68766,2711.8,2711.5,0.14711123]
[1739524933793,6.11868234,2712.0,2711.5,0.14711123]
[1739524933794,3.68749,2711.9,2711.5,0.14711123]
[1739524934218,3.6874,2712.0,2711.5,0.14711123]
[1739524934418,3.68745,2711.9,2711.5,0.14711123]
[1739524934695,3.68745,2711.9,2711.6,0.34506469]
[1739524934895,3.68745,2711.9,2711.7,0.14700582]
[1739524935205,3.68732,2712.0,2711.7,0.14700582]
[1739524935623,4.50574,2712.2,2711.8,0.34506469]
[1739524935822,3.68714,2712.2,2711.9,0.14681533]
[1739524935996,5.31778528,2712.3,2711.8,0.36096469]
[1739524936189,5.31778528,2712.3,2711.8,0.76582516]
[1739524936394,5.31778528,2712.3,2711.9,3.83424533]
[1739524937038,3.68683,2712.4,2711.9,3.83424533]
[1739524937249,6.87224234,2712.6,2712.0,0.38193478]
[1739524937406,3.68656,2712.6,2712.0,0.34506469]
[1739524937608,3.68656,2712.6,2712.2,0.0159]
[1739524937929,3.68639,2712.7,2712.3,0.14632384]
[1739524938143,3.68655,2712.6,2712.3,0.14632384]
[1739524938359,3.68655,2712.6,2712.2,0.0159]
[1739524938550,3.68655,2712.6,2712.4,0.14622863]
[1739524938844,3.68655,2712.6,2712.5,0.14613343]
[1739524939655,3.68649,2712.7,2712.5,0.14613343]
[1739524939980,3.68649,2712.7,2712.5,0.34506469]
[1739524940258,9.75846528,2712.8,2712.5,0.34506469]
[1739524940431,9.75846528,2712.8,2712.6,0.14603824]
[1739524940627,4.44068,2712.8,2712.6,0.14603824]
[1739524940938,4.44068,2712.8,2712.6,0.49110293]
[1739524941518,3.68628,2712.8,2712.6,0.49110293]
[1739524941759,3.68636,2712.7,2712.6,0.49110293]
[1739524942127,3.68636,2712.7,2712.6,0.14603824]
[1739524943660,3.68629,2712.8,2712.4,0.75465847]
[1739524943826,3.68639,2712.7,2712.5,0.14568686]
[1739524944414,3.6865,2712.6,2712.5,0.14568686]
[1739524945268,3.68637,2712.7,2712.5,0.14568686]
[1739524945838,3.6865,2712.6,2712.5,0.14568686]
[1739524946048,4.4968,2712.6,2712.5,0.14568686]
[1739524946241,6.92808234,2712.6,2712.5,0.14568686]
[1739524946943,4.4968,2712.6,2712.5,0.14568686]
[1739524947579,3.6865,2712.6,2712.5,0.14568686]
[1739524948867,4.49666,2712.8,2712.5,0.14568686]
[1739524949376,3.6865,2712.6,2712.5,0.14568686]
[1739524952290,4.6793666,2712.8,2712.5,0.14568686]
[1739524952471,7.3724,2712.9,2712.5,0.65481686]
[1739524952672,3.68618,2712.9,2712.5,0.65481686]
[1739524952881,2.43128234,2712.9,2712.5,0.14568686]
[1739524953189,3.6865,2712.6,2712.5,0.14568686]
[1739524953380,3.6865,2712.6,2712.5,0.49075155]
[1739524960749,6.90988234,2712.6,2712.5,0.49075155]
[1739524960955,7.98793939,2712.6,2712.5,0.49075155]
[1739524961362,7.98793939,2712.6,2712.5,0.34506469]
[1739524961906,7.98793939,2712.6,2711.9,0.34506469]
[1739524962070,3.68731,2712.0,2711.9,1.08734992]
[1739524963094,3.68731,2712.0,2711.9,0.34506469]
[1739524963294,4.503969,2712.0,2711.9,0.34506469]
[1739524963597,3.68731,2712.0,2711.9,0.34506469]
[1739524964861,3.68731,2712.0,2711.9,0.49163327]
[1739524968126,3.68731,2712.0,2711.9,0.34506469]
[1739524968923,3.87064874,2712.0,2711.9,0.34506469]
[1739524970584,3.87064874,2712.0,2711.9,0.49167581]
[1739524970810,3.87064874,2712.0,2711.9,0.14661112]
[1739524971010,4.70564161,2712.0,2711.9,0.14661112]
[1739524971225,3.68745,2711.9,2711.8,0.34506469]
[1739524971623,3.68745,2711.9,2711.8,0.49177105]
[1739524979012,3.68731,2712.0,2711.8,0.50767105]
[1739524979596,7.37421,2712.2,2711.9,0.34506469]
[1739524981009,3.68704,2712.2,2712.1,0.34506469]
[1739524981207,3.68704,2712.2,2712.1,0.49150237]
[1739524982104,7.37391,2712.3,2712.1,0.49150237]
[1739524982508,3.68692,2712.3,2712.1,0.49150237]
[1739524983148,3.68692,2712.3,2712.2,0.34506469]
[1739524983552,3.68692,2712.3,2712.2,0.49140715]
[1739524984252,3.68677,2712.4,2712.2,0.50730715]
[1739524985796,3.68677,2712.4,2712.2,1.24299975]
[1739524985977,3.68677,2712.4,2712.3,0.34506469]
[1739524986451,3.68677,2712.4,2712.3,0.49120986]
[1739524987356,3.68671,2712.5,2712.3,0.49120986]
[1739524987913,3.68671,2712.5,2712.4,0.34506469]
[1739524988112,3.68671,2712.5,2712.4,0.49099982]
[1739524988615,3.6866,2712.6,2712.4,0.49099982]
[1739524989249,3.68636,2712.7,2712.4,0.49099982]
[1739524989550,3.68636,2712.7,2712.5,0.34506469]
[1739524989968,3.68631,2712.8,2712.6,0.14574473]
[1739524990558,3.68636,2712.7,2712.6,0.14574473]
[1739524991977,3.68636,2712.7,2712.6,0.49080942]
[1739524993137,3.68636,2712.7,2712.6,0.38163417]
[1739524995661,5.27669376,2712.7,2712.6,0.38163417]
[1739524995984,3.68681,2712.4,2712.2,0.7356926]
[1739524996773,3.68712,2712.2,2711.7,5.2659]
[1739524996981,3.68727,2712.1,2711.9,0.74362503]
[1739524997695,3.68722,2712.1,2711.7,0.0159]
[1739524997896,3.68759,2711.8,2711.5,0.0159]
[1739524998066,3.68759,2711.8,2711.6,0.74517517]
[1739524998693,0.7816,2711.9,2711.6,0.74517517]
[1739524998880,3.68736,2712.0,2711.7,0.0159]
[1739524999078,3.68752,2711.9,2711.7,0.0159]
[1739524999392,3.68752,2711.9,2711.6,0.74517517]
[1739525000592,3.68736,2712.0,2711.6,0.74517517]
[1739525000756,3.68752,2711.9,2711.6,0.74517517]
[1739525001490,3.68736,2712.0,2711.6,0.74517517]
[1739525001698,3.68749,2711.9,2711.6,0.74517517]
[1739525001913,3.68736,2712.0,2711.6,0.74517517]
[1739525002221,3.6876,2711.8,2711.6,0.74517517]
[1739525005697,3.68758,2711.8,2711.7,0.34500617]
[1739525006029,3.68748,2711.9,2711.7,0.34500617]
[1739525006512,3.68758,2711.8,2711.7,0.34500617]
[1739525006805,3.68758,2711.8,2711.6,0.74517517]
[1739525007499,3.68758,2711.8,2711.7,0.34498773]
[1739525009542,3.68758,2711.8,2711.7,0.48649484]
[1739525009696,4.44350608,2711.8,2711.7,0.48649484]
[1739525010060,4.44350608,2711.8,2711.7,0.34498773]
[1739525011155,5.25810608,2711.8,2711.7,0.34498773]
[1739525011499,5.25810608,2711.8,2711.3,0.74287359]
[1739525011500,3.68813,2711.4,2711.3,0.74287359]
[1739525011899,3.68813,2711.4,2711.3,0.88483408]
[1739525012324,4.50273,2711.4,2711.3,0.14196049]
[1739525012527,4.50273,2711.4,2711.3,0.48694822]
[1739525013200,3.68813,2711.4,2711.3,0.48694822]
[1739525015545,3.688,2711.5,2711.3,0.48694822]
[1739525015722,7.3761,2711.5,2711.3,0.48694822]
[1739525016355,3.68813,2711.4,2711.3,0.48694822]
[1739525018054,3.68793,2711.6,2711.3,0.48694822]
[1739525018208,3.68809,2711.5,2711.3,0.48694822]
[1739525018622,3.68785,2711.6,2711.3,0.48694822]
[1739525018920,3.68799,2711.5,2711.4,0.34498773]
[1739525019328,3.68799,2711.5,2711.4,0.48685294]
[1739525020324,3.68799,2711.5,2711.4,0.14186521]
[1739525021524,3.68785,2711.6,2711.4,0.48685294]
[1739525022186,3.68799,2711.5,2711.4,0.48685294]
[1739525025528,4.47629,2711.5,2711.4,0.48685294]
[1739525027176,3.68799,2711.5,2711.4,0.48685294]
[1739525032358,6.10608528,2711.9,2711.4,0.48685294]
[1739525032563,3.68789,2711.6,2711.4,0.48685294]
[1739525032735,3.68799,2711.5,2711.4,0.48685294]
[1739525033837,3.68788,2711.6,2711.4,0.48685294]
[1739525034041,3.68799,2711.5,2711.4,0.48685294]
[1739525034675,3.68799,2711.5,2711.4,0.14186521]
[1739525035067,7.37583,2711.6,2711.2,0.75010889]
[1739525035266,7.37583,2711.6,2711.4,0.1420524]
[1739525035573,3.68787,2711.6,2711.2,0.75010889]
[1739525035780,3.68787,2711.6,2711.5,0.14195713]
[1739525036074,3.68787,2711.6,2711.2,0.75010889]
[1739525036274,3.68787,2711.6,2711.5,0.14195713]
[1739525036475,3.68787,2711.6,2711.2,0.75010889]
[1739525036675,3.68772,2711.7,2711.5,0.14195713]
[1739525036872,3.68772,2711.7,2711.5,0.0159]
[1739525037073,3.68772,2711.7,2711.6,0.14184059]
[1739525037863,9.00529528,2711.9,2711.6,0.14184059]
[1739525038077,3.68765,2711.8,2711.6,0.14184059]
[1739525038242,3.68772,2711.7,2711.6,0.14184059]
[1739525038639,12.69287528,2711.9,2711.6,0.14184059]
[1739525038839,12.69283528,2711.9,2711.6,0.14184059]
[1739525039100,3.68759,2711.8,2711.6,0.14184059]
[1739525040699,3.68759,2711.8,2711.7,0.34576908]
[1739525041000,3.68759,2711.8,2711.7,0.48253218]
[1739525041540,3.68751,2711.9,2711.7,0.48253218]
[1739525041795,3.68758,2711.8,2711.7,0.48253218]
[1739525043294,4.90417082,2711.8,2711.7,0.48253218]
[1739525044300,5.78175398,2711.8,2711.7,0.48253218]
[1739525044505,6.57335398,2711.8,2711.7,0.34576908]
[1739525045671,3.68826,2711.3,2711.2,0.75010889]
[1739525046911,3.68826,2711.3,2711.2,1.09581032]
[1739525050979,4.90479082,2711.4,2711.2,1.09581032]
[1739525051281,3.68826,2711.3,2711.2,1.09581032]
[1739525051520,4.47986,2711.3,2711.2,0.75010889]
[1739525053019,4.47986,2711.3,2711.2,1.09555804]
[1739525054298,3.68826,2711.3,2711.2,1.09555804]
[1739525054897,3.68826,2711.3,2711.2,1.23270817]
[1739525057000,8.59303082,2711.4,2711.2,1.23270817]
[1739525057163,3.68826,2711.3,2711.2,1.23270817]
[1739525057364,3.68826,2711.3,2711.2,1.09555804]
[1739525057565,3.43946,2711.3,2711.2,1.23270817]
[1739525064502,3.43946,2711.3,2711.2,0.48259928]
[1739525064909,4.90479082,2711.4,2711.2,0.48259928]
[1739525065320,8.59302082,2711.4,2711.2,0.48259928]
[1739525066121,3.68826,2711.3,2711.2,0.48259928]
[1739525066422,3.68826,2711.3,2711.2,0.13715013]
[1739525067928,4.90473082,2711.4,2711.2,0.13715013]
[1739525068288,3.68826,2711.3,2711.2,0.13715013]
[1739525068919,3.68826,2711.3,2711.2,0.4824506]
[1739525071121,4.90473082,2711.4,2711.2,0.4824506]
[1739525072527,8.59294082,2711.4,2711.2,0.4824506]
[1739525072725,11.59294082,2711.4,2711.3,0.34530047]
[1739525073093,11.59294082,2711.4,2711.3,0.48246593]
[1739525073292,7.90473082,2711.4,2711.3,0.48246593]
[1739525073491,7.90473082,2711.4,2711.3,0.34530047]
[1739525073694,7.90473082,2711.4,2711.3,0.48246593]
[1739525074723,7.90473082,2711.4,2711.3,0.34530047]
[1739525084438,7.90473082,2711.4,2711.3,0.48246593]
[1739525086252,7.90473082,2711.4,2711.3,0.34530047]
[1739525089952,8.68953082,2711.4,2711.3,0.34530047]
[1739525095754,8.68953082,2711.4,2711.3,0.48241061]
[1739525096752,8.68953082,2711.4,2711.3,0.34530047]
[1739525098909,7.90473082,2711.4,2711.3,0.34530047]
[1739525099513,7.90473082,2711.4,2711.3,0.48241061]
[1739525099925,7.90473082,2711.4,2711.3,0.34530047]
[1739525100148,4.21659082,2711.4,2711.3,0.48241061]
[1739525101360,7.90472082,2711.4,2711.3,0.48241061]
[1739525103654,7.3191761,2711.6,2711.3,0.48241061]
[1739525103894,5.31778528,2711.6,2711.4,0.0159]
[1739525104296,5.31778528,2711.6,2711.5,0.13696638]
[1739525104590,5.31778528,2711.6,2711.5,0.48226685]
[1739525105788,3.87154081,2712.0,2711.5,0.48226685]
[1739525105789,8.77556163,2712.0,2711.5,0.48226685]
[1739525105999,8.77554163,2712.0,2711.6,0.41862269]
[1739525106151,3.68745,2711.9,2711.6,0.41862269]
[1739525106359,3.68745,2711.9,2711.7,0.13677586]
[1739525106583,3.87154081,2712.0,2711.7,0.13677586]
[1739525106788,3.68745,2711.9,2711.7,0.13677586]
[1739525107791,3.68745,2711.9,2711.8,0.34530047]
[1739525108124,3.7803,2712.1,2711.8,0.48198108]
[1739525108273,7.46751,2712.1,2711.8,0.48198108]
[1739525108455,7.46751,2712.1,2711.8,1.06407454]
[1739525108654,5.31778528,2712.5,2711.8,1.6985719]
[1739525108655,3.0,2712.2,2711.8,1.6985719]
[1739525108877,3.68718,2712.1,2711.8,1.6985719]
[1739525109119,3.68718,2712.1,2711.9,0.34530047]
[1739525109449,3.68718,2712.1,2711.9,0.48174973]
[1739525109892,7.37447,2712.1,2711.9,0.48174973]
[1739525110103,3.68731,2712.0,2711.9,0.48174973]
[1739525110310,4.46761,2712.0,2711.9,0.48174973]
[1739525110463,4.46761,2712.0,2711.9,0.13644926]
[1739525110667,3.68748,2711.9,2711.5,0.0159]
[1739525110996,3.68748,2711.9,2711.6,0.13673501]
[1739525111368,3.68748,2711.9,2711.7,0.73331363]
[1739525111769,3.68748,2711.9,2711.8,0.13654451]
[1739525112273,3.68748,2711.9,2711.8,0.48169929]
[1739525112886,0.7803,2712.0,2711.8,0.48169929]
[1739525113085,3.68718,2712.1,2711.8,0.48169929]
[1739525113279,3.68718,2712.1,2711.8,0.97198458]
[1739525113480,3.68732,2712.0,2711.9,0.34515478]
[1739525113946,3.68732,2712.0,2711.9,0.48160404]
[1739525114715,3.68718,2712.1,2711.9,0.48160404]
[1739525115214,4.46736,2712.2,2711.9,0.48160404]
[1739525115421,0.7803,2712.2,2711.9,0.48160404]
[1739525115882,0.7803,2712.2,2711.9,0.13644926]
[1739525116083,3.68704,2712.2,2711.9,0.13644926]
[1739525116381,3.68704,2712.2,2711.9,0.71544463]
[1739525116578,3.7642,2712.4,2711.9,0.71544463]
[1739525116814,3.68691,2712.3,2712.0,1.56150276]
[1739525116982,3.68705,2712.2,2712.0,1.56150276]
[1739525117324,3.68705,2712.2,2712.1,0.1362588]
[1739525117631,3.0,2712.4,2712.1,0.1362588]
[1739525117829,3.68685,2712.4,2712.1,0.1362588]
[1739525118028,3.68692,2712.3,2712.1,0.1362588]
[1739525118323,3.68699,2712.3,2712.1,0.1362588]
[1739525118700,3.68685,2712.4,2712.1,0.1362588]
[1739525118899,3.68691,2712.3,2712.1,0.7140863]
[1739525119290,3.68691,2712.3,2712.1,0.1521588]
[1739525119701,3.68685,2712.4,2712.1,0.1521588]
[1739525120123,7.37369,2712.4,2712.1,0.1521588]
[1739525120295,3.68684,2712.4,2712.1,0.1521588]
[1739525120704,3.68691,2712.3,2712.1,0.1521588]
[1739525121111,3.68684,2712.4,2712.1,0.1521588]
[1739525122181,3.68684,2712.4,2712.1,0.7156753]
[1739525122828,3.68684,2712.4,2712.2,0.74307039]
[1739525123189,3.68684,2712.4,2712.3,0.13090408]
[1739525123522,3.68684,2712.4,2712.2,0.74307039]
[1739525123841,3.68684,2712.4,2712.3,0.13090408]
[1739525124203,3.68684,2712.4,2712.2,0.74307039]
[1739525124501,3.68684,2712.4,2712.3,0.13090408]
[1739525124729,3.68684,2712.4,2712.2,0.74307039]
[1739525124925,3.68684,2712.4,2712.3,0.13090408]
[1739525125093,3.68684,2712.4,2712.2,0.99697816]
[1739525125293,3.68684,2712.4,2712.3,0.13090408]
[1739525125834,7.37374,2712.4,2712.2,0.74307039]
[1739525125983,3.68684,2712.4,2712.3,0.13090408]
[1739525126189,5.254909,2712.4,2712.3,0.13090408]
[1739525126426,3.68719,2712.1,2711.8,0.0159]
[1739525126913,3.68719,2712.1,2711.9,0.13126372]
[1739525127488,3.68708,2712.2,2711.9,0.13126372]
[1739525127901,3.68708,2712.2,2712.0,0.74115358]
[1739525128343,3.68708,2712.2,2712.1,0.13107326]
[1739525129444,3.68734,2712.0,2711.8,0.0159]
[1739525131349,3.68734,2712.0,2711.9,0.75553881]
[1739525132549,3.68726,2712.1,2711.9,0.75553881]
[1739525132906,3.68717,2712.1,2711.9,0.75553881]
[1739525133341,3.68731,2712.0,2711.9,0.75553881]
[1739525134043,3.68721,2712.1,2711.9,0.95434177]
[1739525134212,7.37426,2712.2,2711.9,0.95434177]
[1739525134412,3.6872,2712.1,2711.9,0.95434177]
[1739525136844,3.68731,2712.0,2711.9,0.95434177]
[1739525137051,3.6872,2712.1,2711.9,0.75553881]
[1739525137715,3.68731,2712.0,2711.9,0.75553881]
[1739525138540,3.68701,2712.3,2711.9,0.75553881]
[1739525138714,3.68718,2712.1,2711.9,0.75553881]
[1739525139754,3.68711,2712.2,2711.9,0.75553881]
[1739525140131,3.6872,2712.1,2711.9,0.75553881]
[1739525140519,3.68701,2712.3,2711.9,0.75553881]
[1739525140724,3.6871,2712.2,2711.9,1.20145269]
[1739525140924,0.7543,2712.4,2711.9,1.20145269]
[1739525140925,3.6873,2712.1,2711.9,1.20145269]
[1739525141128,3.6873,2712.1,2711.9,0.75553881]
[1739525141423,3.68701,2712.3,2711.9,0.75553881]
[1739525141825,3.68718,2712.1,2711.9,0.75553881]
[1739525143189,3.68701,2712.3,2711.9,0.75553881]
[1739525143346,3.68701,2712.3,2712.0,0.0159]
[1739525143669,3.68701,2712.3,2712.0,0.21470296]
[1739525144365,3.68701,2712.3,2712.1,0.13112426]
[1739525147629,3.68683,2712.4,2712.1,0.13112426]
[1739525147842,3.68692,2712.3,2712.1,0.13112426]
[1739525150739,3.68704,2712.2,2712.1,0.13112426]
[1739525156469,3.68731,2712.0,2711.9,0.75553881]
[1739525156871,4.45471,2712.0,2711.9,0.75553881]
[1739525157087,4.45471,2712.0,2711.3,0.0159]
[1739525157088,0.7674,2712.0,2711.3,0.0159]
[1739525157292,3.68803,2711.5,2711.0,6.46659082]
[1739525157598,3.68881,2710.9,2710.8,5.847]
[1739525157954,4.45634,2710.8,2710.7,0.73355553]
[1739525159617,4.45634,2710.8,2710.7,0.85634556]
[1739525161062,7.45634,2710.8,2710.7,0.12279003]
[1739525161298,3.68989,2710.2,2710.0,5.25]
[1739525161599,3.6899,2710.1,2709.8,0.0159]
[1739525161803,3.6899,2710.1,2710.0,0.72379545]
[1739525162165,3.68989,2710.2,2710.0,0.72379545]
[1739525162488,3.68954,2710.4,2710.0,0.72379545]
[1739525162800,3.68963,2710.3,2710.0,0.72379545]
[1739525163621,3.68954,2710.4,2710.0,0.72379545]
[1739525163767,3.68976,2710.2,2710.0,0.72379545]
[1739525164169,3.68954,2710.4,2710.0,0.72379545]
[1739525164383,7.37914,2710.4,2710.0,0.72379545]
[1739525164578,3.68963,2710.3,2710.0,0.72379545]
[1739525164868,3.68954,2710.4,2710.0,0.72379545]
[1739525165179,3.68976,2710.2,2710.0,0.72379545]
[1739525165759,3.6899,2710.1,2710.0,0.72379545]
[1739525166761,3.69029,2709.9,2709.6,0.0159]
[1739525166964,3.69039,2709.8,2709.6,0.0159]
[1739525167262,3.69061,2709.6,2709.3,5.847]
[1739525167507,3.69061,2709.6,2709.3,6.98980589]
[1739525167874,0.8148,2709.7,2709.3,6.98980589]
[1739525168181,4.50531,2709.7,2709.3,6.98980589]
[1739525168371,0.8148,2709.7,2709.3,6.98980589]
[1739525168572,0.8148,2709.9,2709.3,10.68078589]
[1739525168792,4.50508,2709.9,2709.4,1.07478448]
[1739525169267,3.69032,2709.8,2709.5,0.74428396]
[1739525169786,7.38074,2709.8,2709.5,0.74428396]
[1739525169980,3.69032,2709.8,2709.5,0.74428396]
[1739525170193,7.3807,2709.8,2709.5,0.74428396]
[1739525170496,3.69052,2709.7,2709.5,0.74428396]
[1739525170911,3.69044,2709.7,2709.5,0.74428396]
[1739525171099,3.69032,2709.8,2709.5,0.74428396]
[1739525172380,0.8148,2709.9,2709.5,1.18780236]
[1739525172610,4.50459,2710.2,2709.6,3.70646]
[1739525172789,3.68993,2710.1,2709.6,3.70646]
[1739525173514,4.50423,2710.5,2709.6,2.45081411]
[1739525173724,3.68956,2710.4,2709.8,3.69019]
[1739525173883,3.68956,2710.4,2709.9,0.369019]
[1739525174085,3.68965,2710.3,2709.9,0.369019]
[1739525174498,3.68965,2710.3,2710.0,0.12086193]
[1739525175533,3.6895,2710.4,2710.0,0.12086193]
[1739525175815,3.6895,2710.4,2710.0,0.13676193]
[1739525176374,3.68965,2710.3,2710.0,0.13676193]
[1739525176574,3.68965,2710.3,2710.2,0.72995126]
[1739525177099,3.68965,2710.3,2710.2,0.85053728]
[1739525178923,4.5042,2710.5,2710.2,0.85053728]
[1739525179297,3.6895,2710.4,2710.2,0.85053728]
[1739525181133,4.5042,2710.5,2710.2,0.85053728]
[1739525181728,3.6895,2710.4,2710.2,0.85053728]
[1739525182151,4.5042,2710.5,2710.2,0.85053728]
[1739525182513,3.6896,2710.4,2710.2,0.85053728]
[1739525182718,3.68962,2710.3,2710.2,0.12058602]
[1739525182901,3.68962,2710.3,2709.9,0.384919]
[1739525183108,3.68962,2710.3,2710.0,0.4075109]
[1739525183344,4.50416,2710.5,2710.0,4.21829636]
[1739525183659,4.50416,2710.5,2710.0,0.52826636]
[1739525183660,3.68951,2710.4,2710.0,0.52826636]
[1739525184344,3.68951,2710.4,2710.1,0.73965163]
[1739525184647,3.68951,2710.4,2710.1,0.86031173]
[1739525185604,4.50416,2710.5,2710.1,0.86031173]
[1739525186240,3.0,2710.8,2710.1,5.41657999]
[1739525186241,3.0,2710.6,2710.1,5.41657999]
[1739525186428,3.68912,2710.7,2710.3,0.0159]
[1739525186742,4.50497,2711.0,2710.3,0.0159]
[1739525186941,4.50497,2711.0,2710.4,3.80977403]
[1739525187148,3.6889,2710.9,2710.4,3.80976403]
[1739525187346,3.6889,2710.9,2710.4,4.80479184]
[1739525187706,3.68883,2710.9,2710.4,1.11540184]
[1739525188007,3.0,2711.1,2710.6,0.0159]
[1739525188209,3.6883,2711.3,2710.7,3.689]
[1739525188436,3.6883,2711.3,2710.8,3.68889]
[1739525188725,3.68795,2711.6,2710.9,3.74151546]
[1739525188927,4.50411,2711.7,2711.1,3.68845]
[1739525189132,4.50411,2711.7,2711.1,7.37689]
[1739525189335,4.50411,2711.7,2711.3,0.0159]
[1739525189336,3.68772,2711.7,2711.3,0.0159]
[1739525189844,3.68772,2711.7,2711.4,0.11896109]
[1739525191751,3.68786,2711.6,2711.4,0.11896109]
[1739525193252,3.68786,2711.6,2711.4,0.86838027]
[1739525195049,3.68767,2711.8,2711.4,0.86838027]
[1739525195234,3.68767,2711.8,2711.4,1.3256333]
[1739525195436,3.8163,2711.9,2711.4,1.3256333]
[1739525195638,7.50378,2711.9,2711.4,1.3256333]
[1739525195839,3.68772,2711.7,2711.4,1.3256333]
[1739525196040,3.68769,2711.8,2711.4,1.3256333]
[1739525196355,3.68766,2711.8,2711.4,1.3256333]
[1739525196712,3.68774,2711.7,2711.4,0.86838027]
[1739525197852,3.68766,2711.8,2711.4,0.86838027]
[1739525198261,7.37534,2711.8,2711.4,0.86838027]
[1739525198756,3.68775,2711.7,2711.4,0.86838027]
[1739525199127,3.68797,2711.6,2711.4,0.86838027]
[1739525199965,3.68765,2711.8,2711.4,0.86838027]
[1739525200254,3.68765,2711.8,2711.4,1.3256403]
[1739525201255,3.68779,2711.7,2711.4,1.3256403]
[1739525201955,3.68786,2711.6,2711.4,1.3256403]
[1739525202157,3.68799,2711.5,2711.4,0.86838027]
[1739525202628,3.68774,2711.7,2711.4,0.86838027]
[1739525203866,3.68787,2711.6,2711.4,0.86838027]
[1739525204225,3.68773,2711.7,2711.4,0.86838027]
[1739525205564,7.50382,2711.9,2711.4,0.86838027]
[1739525205565,3.68765,2711.8,2711.4,0.86838027]